bitfinex/quotes_ETHUSD_20251230
["timestamp","ask_amount","ask_price","bid_price","bid_amount"]
[1767107085331,8.21808272,2980.8,2979.1,8.7369]
[1767107085502,9.07908272,2980.8,2979.1,8.7369]
[1767107086601,9.07908272,2980.8,2979.2,3.3566058]
[1767107087131,9.07908272,2980.8,2979.1,7.8599]
[1767107087304,7.9302,2980.6,2979.2,0.877]
[1767107088031,0.861,2980.5,2979.3,0.03356493]
[1767107088329,0.002,2980.8,2979.4,7.4391]
[1767107088532,7.9302,2980.4,2978.9,7.4391]
[1767107088840,7.9302,2979.8,2978.2,7.4391]
[1767107089000,8.89142718,2979.7,2978.2,8.3161]
[1767107089336,8.89142718,2979.7,2977.6,7.4391]
[1767107089337,8.03042718,2979.3,2977.6,7.4391]
[1767107089544,8.03042718,2978.9,2977.6,7.4391]
[1767107089741,8.03042718,2978.9,2977.5,0.001]
[1767107089742,0.861,2978.8,2978.0,0.001]
[1767107090033,1.38844624,2978.8,2978.0,0.001]
[1767107090226,0.10022718,2978.6,2977.7,2.137e-05]
[1767107090403,0.861,2978.7,2977.7,2.137e-05]
[1767107090803,4.6653,2979.3,2977.7,7.47270433]
[1767107091004,4.76552718,2979.9,2978.1,7.4391]
[1767107091322,0.861,2979.8,2978.3,7.4391]
[1767107091524,0.10022718,2980.3,2978.1,0.877]
[1767107091525,4.7286,2980.4,2978.6,7.4391]
[1767107091728,0.861,2980.3,2978.8,7.4391]
[1767107091906,4.7286,2980.4,2979.0,7.4391]
[1767107092109,4.79362718,2979.6,2977.7,2.137e-05]
[1767107092441,0.10022718,2978.8,2977.7,2.137e-05]
[1767107092604,5.5544,2978.7,2977.7,2.137e-05]
[1767107092808,0.6656899,2978.6,2977.7,2.137e-05]
[1767107093113,4.80332718,2979.2,2977.7,0.03360432]
[1767107093320,5.66432718,2979.2,2977.7,7.43912137]
[1767107093805,5.66432718,2979.2,2977.8,8.34968183]
[1767107094006,5.66432718,2979.2,2977.8,8.3161]
[1767107094206,4.7031,2979.2,2977.8,8.3161]
[1767107094438,4.7014,2979.7,2977.9,7.47268071]
[1767107094608,0.861,2980.1,2978.4,7.4391]
[1767107094933,0.861,2980.1,2978.1,3.35775257]
[1767107094934,4.80162718,2979.6,2978.1,3.35775257]
[1767107095135,4.79982718,2979.4,2977.9,7.4391]
[1767107095431,4.79982718,2979.4,2977.7,2.137e-05]
[1767107095432,4.79982718,2979.4,2978.0,3.35795753]
[1767107095609,1.42818272,2979.3,2978.0,0.03357896]
[1767107095809,1.42818272,2979.3,2978.4,6.71498824]
[1767107096005,0.862,2979.7,2978.4,6.71498824]
[1767107096255,0.862,2979.7,2978.0,16.75672593]
[1767107096256,0.03356718,2979.6,2978.0,7.4391]
[1767107096534,4.7076,2979.6,2978.2,0.877]
[1767107096734,4.7076,2979.6,2978.2,4.23472011]
[1767107097110,0.89556718,2979.5,2978.2,4.23472011]
[1767107097311,1.4558839,2979.5,2978.2,7.59245296]
[1767107097906,1.42231672,2979.5,2978.4,0.002]
[1767107098111,1.42231672,2979.5,2978.4,7.47467507]
[1767107098306,0.862,2979.5,2978.4,0.002]
[1767107098526,4.7014,2978.7,2977.7,2.137e-05]
[1767107098713,4.7004,2978.3,2977.2,2.137e-05]
[1767107099126,4.79492718,2978.2,2977.2,2.137e-05]
[1767107099332,1.34149272,2978.1,2976.8,0.001]
[1767107099639,4.6947,2978.0,2976.8,0.001]
[1767107099842,4.79492718,2978.0,2976.4,3.35974092]
[1767107100027,4.79392718,2977.7,2976.4,3.35971016]
[1767107100205,0.47949272,2978.1,2976.6,7.4391]
[1767107100406,0.47949272,2978.1,2976.7,7.47269424]
[1767107100407,1.34149272,2978.1,2976.7,7.47269424]
[1767107100740,0.10022718,2979.0,2976.9,3.35919916]
[1767107100741,4.6998,2978.5,2976.9,3.35919916]
[1767107100948,5.66202718,2978.4,2976.8,3.35927725]
[1767107101144,0.862,2978.3,2976.9,0.03359199]
[1767107101310,0.862,2978.3,2976.9,8.34969199]
[1767107101513,4.7057,2979.0,2977.8,5.95973567]
[1767107101831,4.7057,2979.0,2976.9,0.97722718]
[1767107101832,4.7057,2979.6,2978.2,5.95973567]
[1767107102144,0.03356718,2979.5,2978.2,13.84383567]
[1767107102355,5.5677,2979.6,2978.2,13.84383567]
[1767107102563,0.10022718,2980.2,2978.2,13.84383567]
[1767107102564,0.862,2979.8,2978.3,7.9176762]
[1767107102729,0.10022718,2978.5,2977.1,7.8841]
[1767107103054,0.10022718,2979.3,2978.2,5.95973567]
[1767107103627,0.10022718,2980.5,2978.8,7.8841]
[1767107103855,0.10222718,2980.8,2979.7,5.95973567]
[1767107104066,0.10222718,2980.8,2978.3,13.43047556]
[1767107104067,0.10022718,2980.0,2978.8,7.8841]
[1767107104361,0.10022718,2980.1,2979.0,8.7621]
[1767107104873,0.10022718,2980.1,2979.0,7.8841]
[1767107105178,0.10022718,2980.3,2979.1,7.8841]
[1767107105472,0.10022718,2979.1,2977.9,7.8841]
[1767107105672,0.862,2979.3,2978.0,7.8841]
[1767107105993,0.03356718,2979.2,2978.2,7.8841]
[1767107106162,0.10022718,2979.5,2978.2,7.8841]
[1767107106335,0.10022718,2979.5,2978.4,7.8841]
[1767107106657,0.10022718,2979.5,2978.2,9.31743593]
[1767107106658,0.10122718,2979.9,2978.6,7.8841]
[1767107106963,0.10122718,2979.9,2978.7,0.877]
[1767107107128,0.03356718,2979.8,2978.7,7.8841]
[1767107107329,0.03356718,2979.8,2978.1,7.8841]
[1767107107330,0.10022718,2979.5,2978.1,7.8841]
[1767107107531,0.21288544,2979.5,2978.7,7.8841]
[1767107107746,0.13479436,2979.9,2978.7,7.8841]
[1767107108342,0.001,2979.9,2978.8,0.03357056]
[1767107108669,0.001,2981.1,2979.0,7.8841]
[1767107108670,0.862,2980.7,2979.0,7.8841]
[1767107108970,2.02882718,2980.4,2979.1,0.877]
[1767107109273,0.862,2980.7,2979.1,8.7611]
[1767107109473,0.10022718,2980.4,2978.4,5.95973567]
[1767107109777,0.862,2980.7,2979.1,7.8841]
[1767107109953,0.862,2980.7,2979.3,7.8841]
[1767107111009,0.002,2980.8,2979.6,7.8841]
[1767107111129,0.001,2981.1,2980.1,7.8841]
[1767107111334,0.001,2981.1,2979.5,13.84383567]
[1767107111566,0.001,2981.1,2979.6,8.7611]
[1767107111768,0.001,2981.1,2980.1,7.8841]
[1767107111959,0.001,2981.1,2980.1,8.7611]
[1767107112276,0.001,2981.1,2980.1,7.8841]
[1767107113135,0.001,2981.1,2979.5,11.24034046]
[1767107113345,0.001,2981.1,2979.7,3.35603011]
[1767107113571,0.001,2981.1,2979.8,3.35591086]
[1767107113775,0.001,2981.1,2980.0,7.8841]
[1767107113972,0.001,2981.1,2980.2,7.8841]
[1767107114176,2.88491284,2981.6,2980.2,7.8841]
[1767107114379,0.28849128,2981.5,2980.2,7.8841]
[1767107114774,0.89756718,2982.0,2980.2,7.8841]
[1767107114990,0.001,2981.1,2980.3,8.7611]
[1767107115199,0.10022718,2981.9,2980.4,7.8841]
[1767107115492,0.03356718,2981.8,2980.4,8.7611]
[1767107115674,0.002,2982.0,2981.3,0.10022718]
[1767107115675,0.03556718,2982.0,2981.3,0.10022718]
[1767107115875,0.002,2983.2,2981.6,7.8841]
[1767107116075,0.002,2983.2,2982.0,5.95973567]
[1767107116276,0.002,2983.2,2982.1,8.95972718]
[1767107116489,0.001,2983.5,2982.5,13.94223567]
[1767107116690,0.001,2983.5,2982.6,7.9825]
[1767107116899,0.001,2983.5,2982.2,0.877]
[1767107116900,1.9425,2983.5,2982.2,0.877]
[1767107117400,1.9425,2983.5,2982.3,0.877]
[1767107117876,0.001,2983.5,2982.3,8.8595]
[1767107118581,0.001,2983.5,2980.8,8.08272718]
[1767107118582,1.9576,2983.5,2980.8,8.08272718]
[1767107118796,1.9566,2983.3,2981.0,7.9825]
[1767107119100,1.9566,2983.1,2981.3,7.9825]
[1767107120466,1.9566,2983.1,2981.4,0.877]
[1767107120775,1.9714,2982.8,2980.7,7.9825]
[1767107120967,1.9714,2982.8,2981.0,0.877]
[1767107121178,1.9714,2982.8,2981.1,8.01604466]
[1767107121377,1.9714,2982.8,2981.1,7.9825]
[1767107121378,0.861,2982.7,2981.1,7.9825]
[1767107121573,0.28324,2982.6,2981.1,7.9825]
[1767107121984,0.28324,2982.6,2981.3,7.9825]
[1767107122222,0.10022718,2983.2,2981.3,7.9825]
[1767107122223,0.861,2983.2,2981.3,7.9825]
[1767107122507,0.861,2983.2,2981.2,7.13447559]
[1767107122508,2.8396,2983.4,2981.8,7.9825]
[1767107122673,2.8396,2983.4,2981.8,8.8595]
[1767107122870,0.861,2983.4,2981.8,8.8595]
[1767107123108,1.9858,2983.4,2981.9,3.35356651]
[1767107123321,1.9929,2983.2,2981.3,7.9825]
[1767107123470,1.9929,2983.2,2981.4,0.03354128]
[1767107123677,1.9939,2982.8,2981.3,7.9825]
[1767107123899,2.8539,2982.7,2981.3,7.9825]
[1767107124098,2.28539,2982.6,2980.3,7.9825]
[1767107124274,2.28539,2982.6,2980.4,7.9825]
[1767107124275,1.9999,2982.2,2980.4,7.9825]
[1767107124475,1.9999,2982.2,2980.5,0.03355141]
[1767107124690,1.9999,2982.0,2980.4,7.9825]
[1767107124892,2.8609,2981.9,2980.4,8.8595]
[1767107125086,0.28609,2981.8,2980.4,8.8595]
[1767107125911,0.28609,2981.8,2980.5,7.9825]
[1767107126113,2.0136,2981.8,2980.5,7.9825]
[1767107126894,2.0136,2981.8,2979.9,7.9825]
[1767107127104,2.11382718,2981.8,2980.0,0.91055704]
[1767107127307,0.861,2981.7,2979.9,7.9825]
[1767107127621,2.0204,2981.0,2979.4,8.8595]
[1767107127804,3.09346272,2980.9,2979.4,8.8595]
[1767107128708,0.10022718,2980.6,2978.8,7.9825]
[1767107128894,2.0271,2980.5,2978.8,7.9825]
[1767107129228,2.0271,2980.5,2978.6,0.877]
[1767107129431,2.0337,2980.1,2978.3,7.9825]
[1767107129638,0.10022718,2980.2,2978.1,0.002]
[1767107129639,2.0337,2979.7,2978.1,0.002]
[1767107129805,2.0337,2979.7,2977.8,7.9825]
[1767107129806,2.0297,2979.3,2977.8,7.9825]
[1767107130115,2.8907,2979.2,2977.8,7.9825]
[1767107130323,0.10022718,2980.0,2977.6,3.35839256]
[1767107130324,0.861,2979.7,2978.3,3.35761032]
[1767107130521,2.0362,2980.1,2978.4,0.03357507]
[1767107130830,0.861,2980.1,2978.3,7.9825]
[1767107131034,2.0428,2980.3,2978.4,3.39107599]
[1767107131236,2.0428,2980.1,2978.4,11.37357599]
[1767107131402,2.0428,2980.1,2978.6,7.9825]
[1767107132030,2.0428,2980.1,2978.1,0.001]
[1767107132206,2.14302718,2980.1,2978.2,3.35772944]
[1767107132401,2.14302718,2980.1,2978.1,0.001]
[1767107132607,2.14302718,2980.1,2977.6,3.35840643]
[1767107132608,2.0483,2979.8,2977.8,3.35811013]
[1767107132802,2.0483,2979.6,2977.9,0.03358071]
[1767107133009,0.21485272,2979.7,2977.9,0.03358071]
[1767107133010,2.0483,2979.4,2977.9,0.03358071]
[1767107133211,0.21485272,2979.7,2978.4,3.3574646]
[1767107133411,2.0536,2980.0,2978.5,0.03357394]
[1767107133623,0.861,2979.9,2978.6,0.03357281]
[1767107133827,2.0536,2980.0,2978.6,0.03357281]
[1767107134013,2.9146,2980.0,2978.6,7.9825]
[1767107134338,2.9146,2980.0,2978.7,0.02518818]
[1767107134501,0.30148272,2979.9,2978.7,0.02518818]
[1767107134701,3.22128272,2979.9,2978.6,7.9825]
[1767107135621,2.36028272,2979.9,2978.6,7.9825]
[1767107135824,0.861,2979.8,2978.6,7.9825]
[1767107136200,0.861,2979.8,2978.0,11.34037177]
[1767107136361,2.069,2979.7,2978.1,4.23473542]
[1767107136560,0.10022718,2979.1,2977.2,7.9825]
[1767107136765,2.069,2978.9,2977.2,11.34133567]
[1767107137063,2.069,2978.9,2977.2,11.34132632]
[1767107137266,2.3671,2978.8,2977.2,7.9825]
[1767107137456,2.3671,2978.8,2977.3,8.01608747]
[1767107137657,0.861,2978.7,2977.3,7.9825]
[1767107137882,0.861,2978.7,2977.4,0.03358635]
[1767107138062,2.3671,2978.8,2977.3,7.9825]
[1767107138269,1.09771,2978.7,2977.3,7.9825]
[1767107138715,2.017,2978.6,2977.3,7.9825]
[1767107138875,1.09771,2978.7,2977.3,7.9825]
[1767107139060,0.861,2978.9,2977.5,7.9825]
[1767107139369,2.0842,2978.6,2977.0,7.9845]
[1767107139557,2.0842,2978.4,2977.0,0.002]
[1767107139758,2.0842,2978.2,2976.8,0.002]
[1767107140162,0.10022718,2978.1,2978.0,0.002]
[1767107140699,2.18732718,2978.1,2978.0,0.002]
[1767107141073,0.21844272,2978.3,2978.0,0.002]
[1767107141289,0.10022718,2978.7,2978.0,0.002]
[1767107141290,0.862,2978.5,2978.0,0.002]
[1767107141596,0.862,2979.0,2978.0,0.002]
[1767107142296,0.862,2979.0,2977.6,7.9825]
[1767107142297,2.0851,2978.9,2977.6,7.9825]
[1767107142993,0.10022718,2979.5,2977.7,0.03358296]
[1767107142994,2.0851,2979.4,2977.7,0.03358296]
[1767107143165,0.21853272,2979.3,2977.7,7.9825]
[1767107143627,0.96222718,2979.2,2977.9,7.9825]
[1767107143777,2.0898,2979.1,2977.4,3.35853691]
[1767107143974,2.0898,2979.1,2977.3,7.9825]
[1767107144176,2.0947,2978.9,2977.3,7.9825]
[1767107144487,0.30520272,2979.0,2977.8,7.9825]
[1767107144661,0.862,2978.9,2977.9,7.9825]
[1767107144993,0.862,2979.0,2977.9,7.9825]
[1767107145191,2.0947,2979.4,2977.9,7.9825]
[1767107145494,2.0993,2978.9,2977.4,0.878]
[1767107145790,2.0993,2978.9,2977.4,8.8605]
[1767107145997,0.29613,2978.8,2977.5,0.03358522]
[1767107146365,2.40473,2978.8,2977.4,7.9825]
[1767107146963,2.1086,2978.6,2976.9,8.5056]
[1767107147623,2.20882718,2978.6,2976.9,8.5056]
[1767107148398,0.862,2978.5,2976.9,8.5056]
[1767107148708,1.16908272,2978.4,2976.9,7.59837334]
[1767107148894,2.1086,2978.6,2977.0,7.65265799]
[1767107149094,0.862,2978.9,2977.3,7.6256]
[1767107149276,2.108,2979.2,2977.5,7.6256]
[1767107149476,0.862,2979.1,2977.5,7.6256]
[1767107149675,0.862,2979.1,2977.6,7.6256]
[1767107149904,2.108,2979.2,2977.6,7.6256]
[1767107150174,0.862,2979.3,2977.6,7.6256]
[1767107150806,0.862,2979.3,2977.8,7.6256]
[1767107151006,2.9791,2979.3,2977.9,7.6256]
[1767107151304,2.017,2979.7,2977.2,7.13447559]
[1767107151305,0.29791,2979.2,2978.0,7.6256]
[1767107151476,0.862,2979.4,2978.0,7.6256]
[1767107151676,2.1214,2979.3,2978.0,7.6256]
[1767107152090,0.862,2979.2,2978.0,7.6256]
[1767107153277,0.001,2979.8,2978.1,7.6256]
[1767107153605,2.13,2979.6,2978.1,7.6256]
[1767107153811,1.075,2979.5,2978.1,7.6256]
[1767107154032,0.10122718,2979.8,2978.2,7.65917732]
[1767107154033,0.001,2979.8,2978.2,7.65917732]
[1767107154311,0.001,2979.8,2978.4,7.6256]
[1767107155304,0.001,2979.8,2978.5,8.5036]
[1767107155704,0.001,2979.8,2978.8,7.6256]
[1767107156015,0.001,2979.8,2978.2,7.6256]
[1767107156016,2.1394,2979.8,2978.2,7.6256]
[1767107156220,0.30014,2979.7,2978.3,0.0335762]
[1767107156528,2.44274,2979.7,2978.3,7.6256]
[1767107157228,2.44274,2979.7,2978.1,0.878]
[1767107157229,0.001,2979.8,2978.5,7.6256]
[1767107157723,2.1467,2979.7,2978.5,7.6256]
[1767107158297,2.1467,2979.7,2978.6,0.03357281]
[1767107158499,2.1467,2979.7,2978.5,7.6256]
[1767107159315,0.001,2979.8,2978.6,7.7404]
[1767107159800,0.001,2979.8,2978.8,7.7404]
[1767107160004,0.001,2979.8,2978.8,8.6184]
[1767107160403,0.001,2979.8,2978.8,7.7404]
[1767107160598,0.001,2979.8,2977.2,0.10022718]
[1767107160599,3.0246,2979.7,2977.6,0.002]
[1767107160806,2.1626,2979.5,2978.0,7.7404]
[1767107161150,0.862,2979.6,2978.0,7.7404]
[1767107161151,2.45946,2979.4,2978.0,7.7404]
[1767107161434,2.45946,2979.4,2978.2,7.7404]
[1767107161646,2.45946,2979.4,2978.3,0.0335762]
[1767107161802,2.45946,2979.4,2978.2,7.7404]
[1767107162201,2.45946,2979.4,2977.7,7.7404]
[1767107162412,2.161,2979.2,2977.7,8.6184]
[1767107162612,2.161,2979.2,2977.8,7.77398183]
[1767107162613,0.862,2979.2,2977.8,7.77398183]
[1767107162817,0.862,2979.2,2978.0,7.7404]
[1767107163113,0.862,2979.2,2978.1,7.77397845]
[1767107163323,0.862,2979.2,2978.1,7.7404]
[1767107163757,3.023,2979.7,2978.2,7.77397732]
[1767107163921,3.023,2979.7,2978.2,7.7404]
[1767107164523,2.1693,2979.6,2978.0,0.878]
[1767107165340,2.1693,2979.6,2978.2,11.09808443]
[1767107165529,2.1693,2979.6,2978.3,7.7739762]
[1767107165732,0.001,2979.2,2978.3,7.7404]
[1767107166131,0.862,2979.7,2978.4,7.7404]
[1767107166452,0.001,2979.8,2978.6,7.7404]
[1767107167752,0.001,2979.8,2978.7,0.878]
[1767107168346,0.001,2979.8,2978.7,8.65197169]
[1767107168543,0.001,2979.8,2978.7,8.6184]
[1767107170043,0.001,2979.8,2978.8,7.77397056]
[1767107170346,0.001,2979.8,2978.8,7.7404]
[1767107170658,0.001,2979.8,2978.9,7.7404]
[1767107171027,0.001,2979.8,2979.1,7.7404]
[1767107171552,0.001,2979.8,2978.4,7.7404]
[1767107171759,2.2049,2979.6,2977.7,7.7404]
[1767107171962,0.10022718,2979.2,2977.7,7.7404]
[1767107172167,2.2083,2979.0,2977.7,7.7404]
[1767107172331,2.2083,2979.0,2977.8,0.03358183]
[1767107172532,2.2063,2978.5,2976.9,0.002]
[1767107172737,2.2063,2978.3,2976.9,0.002]
[1767107172936,2.2063,2978.1,2976.9,0.002]
[1767107173242,2.2098,2978.7,2977.1,7.7404]
[1767107173443,0.862,2978.8,2977.4,7.7404]
[1767107173749,0.862,2978.8,2977.5,7.77398522]
[1767107173950,0.862,2978.8,2978.4,0.002]
[1767107174150,3.0731,2978.8,2977.5,7.7404]
[1767107174339,0.30731,2978.7,2977.5,7.7404]
[1767107175054,2.51841,2978.7,2977.2,7.7424]
[1767107175228,0.862,2978.6,2977.4,7.7404]
[1767107175426,0.862,2978.6,2977.6,7.7404]
[1767107175629,2.2144,2979.2,2977.6,7.7404]
[1767107175630,0.862,2978.9,2977.6,7.7404]
[1767107176047,0.862,2978.9,2977.7,0.03358296]
[1767107176250,0.862,2978.9,2977.7,8.14288296]
[1767107176442,2.2144,2979.2,2977.7,8.1093]
[1767107176641,0.862,2979.1,2977.9,8.1093]
[1767107177654,0.862,2979.2,2977.9,8.1093]
[1767107177855,0.862,2979.1,2978.0,8.1093]
[1767107178158,2.2249,2979.8,2978.2,8.1093]
[1767107178331,2.2271,2979.6,2978.1,0.878]
[1767107178729,2.2271,2979.6,2977.8,8.1093]
[1767107178956,2.2271,2979.6,2977.9,8.9873]
[1767107179162,2.2271,2979.6,2978.1,8.1093]
[1767107179348,2.2303,2979.4,2978.1,8.1093]
[1767107180254,3.0923,2979.4,2978.2,8.1093]
[1767107180831,0.862,2979.4,2978.4,8.1093]
[1767107181032,0.10122718,2979.8,2978.4,8.1093]
[1767107181266,0.001,2979.8,2978.4,8.1093]
[1767107181466,1.08543,2979.7,2978.2,8.1093]
[1767107181680,0.001,2979.8,2978.4,8.1093]
[1767107181829,0.863,2979.8,2978.6,8.1093]
[1767107182035,0.001,2979.7,2978.6,8.1093]
[1767107182359,0.001,2979.7,2978.6,3.35728194]
[1767107182557,0.001,2979.7,2978.8,8.1093]
[1767107182763,0.001,2979.7,2979.0,8.1093]
[1767107183461,0.001,2979.7,2978.6,8.1093]
[1767107183764,0.001,2979.7,2978.8,8.1093]
[1767107183936,0.001,2979.7,2979.0,8.1093]
[1767107184133,0.002,2980.9,2979.7,8.1093]
[1767107184339,0.002,2980.9,2979.7,8.9873]
[1767107185162,2.2397,2980.9,2979.1,8.1093]
[1767107185362,0.002,2980.9,2979.5,8.1093]
[1767107185875,0.002,2980.9,2979.6,0.878]
[1767107186037,0.002,2980.9,2979.7,8.1093]
[1767107186643,2.2455,2980.9,2979.7,8.1093]
[1767107187339,0.002,2980.9,2979.7,8.1093]
[1767107188372,0.002,2980.9,2979.8,8.1093]
[1767107190487,2.2455,2980.8,2978.4,0.002]
[1767107190642,2.2455,2980.8,2978.7,8.1093]
[1767107190842,2.2455,2980.8,2978.9,8.1093]
[1767107191371,2.2484,2980.2,2978.4,0.002]
[1767107191562,2.2484,2980.0,2978.4,0.002]
[1767107192166,2.34862718,2980.0,2978.4,0.002]
[1767107193154,0.10022718,2977.9,2977.5,8.1093]
[1767107193378,0.10022718,2978.2,2976.9,0.002]
[1767107193379,0.10022718,2977.5,2977.0,8.1093]
[1767107193547,0.10022718,2977.3,2977.0,8.1093]
[1767107193751,0.10022718,2977.3,2976.9,0.002]
[1767107193946,0.10022718,2977.3,2976.7,0.002]
[1767107193947,0.10022718,2977.1,2976.7,0.002]
[1767107194147,0.10022718,2977.5,2976.7,0.002]
[1767107194474,0.10022718,2977.5,2975.5,8.1093]
[1767107194475,0.10022718,2976.7,2975.5,8.1093]
[1767107194684,0.10022718,2976.5,2974.8,8.1093]
[1767107194883,0.10022718,2976.5,2974.8,3.36154149]
[1767107195182,0.10022718,2976.5,2975.0,8.1093]
[1767107195391,0.10022718,2974.8,2973.7,6.65366694]
[1767107195554,0.10022718,2974.4,2973.8,8.77466669]
[1767107195751,0.10022718,2974.4,2973.9,0.03362587]
[1767107195953,0.10022718,2974.6,2973.8,8.1093]
[1767107196151,0.10022718,2974.8,2973.8,8.1093]
[1767107196152,0.10022718,2974.8,2973.9,0.03362587]
[1767107196360,0.10022718,2975.0,2973.9,8.14292587]
[1767107196554,6.629,2975.8,2974.3,8.1093]
[1767107196889,0.10022718,2975.1,2974.3,8.1093]
[1767107197086,0.10022718,2975.1,2973.9,3.36250228]
[1767107197262,0.10022718,2974.7,2973.6,8.1093]
[1767107197584,0.10022718,2974.7,2973.9,11.47186793]
[1767107197895,0.10022718,2974.7,2972.8,0.16]
[1767107197896,0.10022718,2974.0,2972.7,6.65366694]
[1767107198073,0.10022718,2974.6,2972.6,3.36400293]
[1767107198074,0.862,2974.6,2973.6,8.1093]
[1767107198251,7.95592718,2975.5,2974.0,8.1093]
[1767107198456,7.95592718,2976.1,2974.5,8.1093]
[1767107198672,7.95592718,2976.1,2974.6,8.14291796]
[1767107198876,0.10022718,2976.5,2974.7,8.1093]
[1767107199185,0.10022718,2976.5,2974.6,5.97227372]
[1767107199186,0.863,2976.3,2974.9,8.1093]
[1767107199391,0.863,2976.3,2975.0,0.03361344]
[1767107199687,0.863,2976.2,2975.0,8.14291344]
[1767107199897,0.10022718,2976.1,2975.1,0.03361231]
[1767107200188,7.96482718,2976.1,2974.5,8.14291909]
[1767107200390,7.96482718,2976.1,2974.5,8.1093]
[1767107200391,7.97362718,2975.9,2974.5,8.1093]
[1767107200592,7.97362718,2975.7,2974.5,8.1093]
[1767107200759,0.863,2975.6,2974.6,8.1093]
[1767107201163,0.10022718,2976.2,2974.7,8.14291683]
[1767107201364,8.84532718,2975.8,2974.4,3.36201609]
[1767107201594,8.84532718,2975.8,2974.4,3.39563631]
[1767107201968,8.84532718,2975.8,2974.4,0.03362022]
[1767107202169,0.88453272,2975.7,2974.4,0.03362022]
[1767107202478,0.863,2975.6,2974.6,8.1093]
[1767107202685,0.863,2975.6,2974.7,0.03361683]
[1767107202997,0.10022718,2976.1,2974.8,0.0336157]
[1767107203178,0.10022718,2975.9,2974.8,8.78501845]
[1767107203380,0.10022718,2975.9,2974.8,8.1093]
[1767107203706,1.7613399,2976.1,2974.8,8.1093]
[1767107203707,0.10022718,2976.1,2974.8,8.1093]
[1767107204059,0.10022718,2976.2,2974.8,8.1093]
[1767107204265,8.86112718,2976.2,2974.8,8.1093]
[1767107204478,8.86112718,2976.2,2974.3,8.1093]
[1767107204479,0.10022718,2975.8,2974.3,8.1093]
[1767107204791,7.8979,2975.4,2973.8,8.1093]
[1767107204990,7.8979,2975.4,2974.2,3.36216965]
[1767107204991,0.863,2975.3,2974.2,3.36216965]
[1767107205694,7.99812718,2975.4,2974.3,0.03362135]
[1767107205990,8.02532718,2975.2,2974.0,8.1093]
[1767107206202,0.88883272,2975.1,2974.0,8.1093]
[1767107206556,0.88883272,2975.1,2973.9,0.002]
[1767107206762,8.03342718,2975.0,2973.9,0.002]
[1767107207079,0.10022718,2974.8,2973.9,0.002]
[1767107207281,0.863,2974.8,2974.0,3.3624209]
[1767107207493,0.863,2974.8,2974.0,11.26042558]
[1767107207693,7.9413,2975.5,2974.1,0.03362361]
[1767107207881,0.863,2975.2,2974.2,7.59182248]
[1767107208195,7.9413,2975.5,2974.3,0.03362135]
[1767107208384,7.9492,2975.3,2974.0,0.33980468]
[1767107208693,0.88122,2975.2,2974.0,0.03362474]
[1767107209314,8.83822,2975.2,2974.0,0.03362474]
[1767107209463,8.05722718,2975.2,2973.9,0.002]
[1767107209668,7.957,2974.9,2973.9,0.002]
[1767107209868,8.818,2974.8,2973.3,8.4372]
[1767107210069,8.818,2974.8,2973.5,3.36296686]
[1767107210307,8.818,2974.8,2972.8,7.5582]
[1767107210308,7.9627,2974.5,2972.8,7.5582]
[1767107210593,7.9627,2974.5,2973.0,7.5582]
[1767107210594,0.863,2974.4,2973.0,7.5582]
[1767107210797,8.8257,2974.4,2973.2,7.5582]
[1767107211036,8.8257,2974.4,2972.8,3.36380733]
[1767107211037,0.10022718,2974.1,2972.8,7.5582]
[1767107211168,8.8257,2974.0,2972.7,7.5602]
[1767107211512,8.8257,2974.0,2972.5,0.879]
[1767107211513,7.9705,2973.6,2972.1,7.5582]
[1767107211797,7.9705,2973.6,2972.2,0.03364511]
[1767107212007,8.8315,2973.5,2972.2,3.39814593]
[1767107212306,7.9663,2974.0,2972.9,7.5582]
[1767107212611,8.06652718,2973.9,2972.4,7.5582]
[1767107212902,8.06652718,2973.9,2972.5,7.59184171]
[1767107213119,0.10022718,2974.2,2972.6,7.59184058]
[1767107213319,8.837,2974.0,2972.7,7.5582]
[1767107213606,0.10022718,2974.4,2973.0,7.5582]
[1767107213771,0.96322718,2974.4,2973.0,7.5582]
[1767107213972,8.93722718,2974.4,2973.0,7.5582]
[1767107214166,0.10022718,2974.1,2973.0,7.5582]
[1767107214368,0.10022718,2974.1,2972.6,0.002]
[1767107214369,7.9717,2973.9,2972.6,0.002]
[1767107214610,0.9074199,2973.8,2972.7,10.9220777]
[1767107214785,0.10022718,2973.6,2972.7,7.5582]
[1767107214971,0.10022718,2973.6,2972.7,10.92207295]
[1767107215306,0.9074199,2973.8,2972.8,8.4372]
[1767107215472,0.96422718,2974.0,2972.8,8.4372]
[1767107215677,7.9794,2974.4,2972.8,8.4372]
[1767107215876,7.9804,2974.8,2973.3,7.5582]
[1767107216074,7.9804,2974.8,2973.2,5.97227372]
[1767107216075,0.001,2974.8,2973.5,7.5582]
[1767107216291,0.001,2974.8,2973.7,7.5582]
[1767107216486,0.001,2974.8,2973.8,7.591827]
[1767107216700,0.001,2974.8,2973.9,11.79978784]
[1767107216885,7.9879,2975.5,2974.0,7.5582]
[1767107217088,7.9879,2975.5,2974.0,8.4372]
[1767107217290,7.9879,2975.5,2974.1,0.91262361]
[1767107217504,8.79671272,2975.5,2974.1,0.91262361]
[1767107217811,0.03357845,2975.4,2974.1,7.5582]
[1767107217986,8.09552718,2975.7,2974.3,7.5582]
[1767107218307,7.9928,2975.5,2974.3,7.5582]
[1767107218609,0.001,2976.0,2974.7,7.5582]
[1767107218771,0.001,2976.0,2974.6,6.67599922]
[1767107218772,0.001,2976.0,2974.9,7.6441]
[1767107219204,0.001,2976.0,2975.1,7.6441]